fUSD/lending_fUSD_20241222
["ID","MTS","AMOUNT","RATE_DAILY","PERIOD"]
[346317642,1734887436394,-500.0,0.00019452,2]
[346317643,1734887436403,-641.64,0.00019452,2]
[346317644,1734887436412,-500.0,0.00019452,2]
[346317645,1734887436421,-500.0,0.00019452,2]
[346317646,1734887436431,-500.0,0.00019452,2]
[346317647,1734887436440,-500.0,0.00019452,2]
[346317648,1734887436449,-500.0,0.00019452,2]
[346317649,1734887436459,-500.0,0.00019452,2]
[346317650,1734887436468,-500.0,0.00019452,2]
[346317651,1734887436478,-441.55,0.00019452,2]
[346317652,1734887436487,-500.0,0.00019452,2]
[346317653,1734887436497,-500.0,0.00019452,2]
[346317654,1734887436507,-500.0,0.00019452,2]
[346317655,1734887436515,-500.0,0.00019452,2]
[346317656,1734887436525,-692.48,0.00019452,2]
[346317657,1734887436534,-2676.22,0.00019452,2]
[346317658,1734887436543,-500.0,0.00019452,2]
[346317659,1734887436552,-500.0,0.00019452,2]
[346317660,1734887436561,-500.0,0.00019452,2]
[346317661,1734887436571,-500.0,0.00019452,2]
[346317662,1734887436581,-500.0,0.00019452,2]
[346317663,1734887436593,-500.0,0.00019452,2]
[346317664,1734887436602,-645.8,0.00019452,2]
[346317665,1734887436612,-500.0,0.00019452,2]
[346317666,1734887436621,-500.0,0.00019452,2]
[346317667,1734887436630,-1298.27,0.00019452,2]
[346317668,1734887436640,-500.0,0.00019452,2]
[346317669,1734887436650,-691.48,0.00019452,2]
[346317670,1734887436659,-500.0,0.00019452,2]
[346317671,1734887436670,-546.60410186,0.00019452,2]
[346317672,1734887436679,-2040.88,0.00019452,2]
[346317673,1734887436689,-500.0,0.00019452,2]
[346317674,1734887436699,-500.0,0.00019452,2]
[346317675,1734887436708,-621.83,0.00019452,2]
[346317676,1734887436717,-548.0,0.00019452,2]
[346317677,1734887436727,-1046.62,0.00019452,2]
[346317678,1734887436736,-2105.49,0.00019452,2]
[346317679,1734887436745,-4216.59,0.00019452,2]
[346317680,1734887436755,-728.4,0.00019452,2]
[346317681,1734887436765,-520.65,0.00019452,2]
[346317682,1734887436774,-500.0,0.00019452,2]
[346317683,1734887436784,-500.0,0.00019452,2]
[346317684,1734887436793,-500.0,0.00019452,2]
[346317685,1734887436802,-635.4,0.00019452,2]
[346317686,1734887436811,-500.0,0.00019452,2]
[346317687,1734887436821,-500.0,0.00019452,2]
[346317688,1734887436831,-533.48,0.00019452,2]
[346317689,1734887436840,-500.0,0.00019452,2]
[346317690,1734887436850,-26074.9,0.00019452,2]
[346317691,1734887436859,-581.3,0.00019452,2]
[346317692,1734887436868,-600.32,0.00019452,2]
[346317693,1734887436877,-626.2,0.00019452,2]
[346317694,1734887436887,-3982.77,0.00019452,2]
[346317695,1734887436896,-500.0,0.00019452,2]
[346317696,1734887436905,-738.34,0.00019452,2]
[346317697,1734887436915,-761.49,0.00019452,2]
[346317698,1734887436924,-500.0,0.00019452,2]
[346317699,1734887436934,-35430.44,0.00019452,2]
[346317700,1734887436943,-500.0,0.00019452,2]
[346317701,1734887436952,-500.0,0.00019452,2]
[346317702,1734887436962,-500.0,0.00019452,2]
[346317703,1734887436971,-535.72,0.00019452,2]
[346317704,1734887436981,-500.0,0.00019452,2]
[346317705,1734887436990,-1045.65,0.00019452,2]
[346317706,1734887436999,-975.72,0.00019452,2]
[346317707,1734887437009,-709.92,0.00019452,2]
[346317708,1734887437018,-500.0,0.00019452,2]
[346317709,1734887437027,-500.0,0.00019452,2]
[346317710,1734887437036,-947.46,0.00019452,2]
[346317711,1734887437046,-4508.52,0.00019452,2]
[346317712,1734887437055,-500.0,0.00019452,2]
[346317713,1734887437064,-500.0,0.00019452,2]
[346317714,1734887437073,-530.32,0.00019452,2]
[346317715,1734887437082,-561.84,0.00019452,2]
[346317716,1734887437091,-4933.33,0.00019452,2]
[346317717,1734887437100,-500.0,0.00019452,2]
[346317718,1734887437109,-500.0,0.00019452,2]
[346317719,1734887437119,-500.0,0.00019452,2]
[346317720,1734887437128,-44436.31101211,0.00019452,2]
[346317721,1734887437148,-649.06309746,0.00019452,2]
[346317722,1734887437159,-929.0145636,0.00019452,2]
[346317724,1734887438075,-18990.86,0.00019178,2]
[346317725,1734887438085,-9668.09132683,0.00019452,2]
[346317726,1734887438095,-968.77,0.00019452,2]
[346317727,1734887438104,-500.0,0.00019452,2]
[346317728,1734887438114,-2357.78,0.00019452,2]
[346317729,1734887438123,-500.0,0.00019452,2]
[346317730,1734887438133,-884.33,0.00019452,2]
[346317731,1734887438142,-5849.76,0.00019452,2]
[346317732,1734887438151,-727.36,0.00019452,2]
[346317733,1734887438160,-2105.45,0.00019452,2]
[346317734,1734887438169,-500.0,0.00019452,2]
[346317735,1734887438179,-2639.24,0.00019452,2]
[346317736,1734887438188,-500.0,0.00019452,2]
[346317737,1734887438197,-744.93,0.00019452,2]
[346317738,1734887438206,-630.12,0.00019452,2]
[346317739,1734887438215,-15569.74,0.00019452,2]
[346317740,1734887438225,-3035.04,0.00019452,2]
[346317741,1734887438234,-512.16,0.00019452,2]
[346317742,1734887438243,-500.0,0.00019452,2]
[346317743,1734887438252,-1100.31,0.00019452,2]
[346317744,1734887438263,-500.0,0.00019452,2]
[346317745,1734887438272,-6482.8,0.00019452,2]
[346317746,1734887438281,-1347.49,0.00019452,2]
[346317747,1734887438291,-1699.64,0.00019452,2]
[346317748,1734887438300,-500.0,0.00019452,2]
[346317749,1734887438309,-500.0,0.00019452,2]
[346317750,1734887438318,-1080.79,0.00019452,2]
[346317751,1734887438327,-598.67,0.00019452,2]
[346317752,1734887438336,-879.45325208,0.00019452,2]
[346317765,1734887438576,-642.13674792,0.00019452,2]
[346317766,1734887438587,-500.0,0.00019452,2]
[346317768,1734887438599,-10450.5,0.00019452,2]
[346317770,1734887438609,-1290.39,0.00019452,2]
[346317772,1734887438618,-376.97325208,0.00019452,2]
[346317775,1734887438631,-2797.15674792,0.00019452,2]
[346317777,1734887438640,-500.0,0.00019452,2]
[346317779,1734887438649,-8361.80578208,0.00019452,2]
[346317781,1734887438660,-8647.57421792,0.00019452,2]
[346317782,1734887438670,-500.0,0.00019452,2]
[346317783,1734887438680,-6435.65,0.00019452,2]
[346317784,1734887438689,-4663.02,0.00019452,2]
[346317785,1734887438698,-500.0,0.00019452,2]
[346317786,1734887438707,-500.0,0.00019452,2]
[346317787,1734887438717,-500.0,0.00019452,2]
[346317788,1734887438726,-500.0,0.00019452,2]
[346317789,1734887438735,-253.19915469,0.00019452,2]
[346317790,1734887438747,-363.01084531,0.00019452,2]
[346317791,1734887438756,-562.08915469,0.00019452,2]
[346317792,1734887438768,-56.86084531,0.00019452,2]
[346317793,1734887438778,-402.41635626,0.00019452,2]
[346317794,1734887438790,-97.58364374,0.00019452,2]
[346317795,1734887438800,-4019.21,0.00019452,2]
[346317796,1734887438809,-7295.19,0.00019452,2]
[346317797,1734887438818,-500.0,0.00019452,2]
[346317798,1734887438827,-500.0,0.00019452,2]
[346317799,1734887438836,-500.0,0.00019452,2]
[346317800,1734887438845,-20522.0,0.00019452,2]
[346317801,1734887438854,-1480.69,0.00019452,2]
[346317802,1734887438863,-500.0,0.00019452,2]
[346317804,1734887438872,-2682.1,0.00019452,2]
[346317807,1734887438882,-539.9,0.00019452,2]
[346317810,1734887438891,-5770.95,0.00019452,2]
[346317812,1734887438900,-1461.3,0.00019452,2]
[346317815,1734887438909,-500.0,0.00019452,2]
[346317817,1734887438919,-500.0,0.00019452,2]
[346317819,1734887438928,-1801.58,0.00019452,2]
[346317821,1734887438937,-599.94,0.00019452,2]
[346317823,1734887438947,-1125.74,0.00019452,2]
[346317825,1734887438956,-500.0,0.00019452,2]
[346317827,1734887438966,-1518.95,0.00019452,2]
[346317829,1734887438975,-6015.16,0.00019452,2]
[346317831,1734887438985,-2282.96,0.00019452,2]
[346317833,1734887438994,-2824.38,0.00019452,2]
[346317835,1734887439003,-500.0,0.00019452,2]
[346317837,1734887439014,-500.0,0.00019452,2]
[346317839,1734887439023,-1385.41,0.00019452,2]
[346317841,1734887439033,-500.0,0.00019452,2]
[346317843,1734887439042,-1933.99067623,0.00019452,2]
[346317846,1734887439054,-352.10604785,0.00019452,2]
[346317858,1734887439159,-500.0,0.00019178,2]
[346317860,1734887439168,-5180.29847286,0.00019452,2]
[346317862,1734887439179,-1379.3469946,0.00019452,2]
[346317986,1734887440382,-495.6,0.00019178,2]
[346317987,1734887440441,-138.25,0.00019178,2]
[346317988,1734887440451,-10145.11780846,0.00019452,2]
[346317989,1734887440460,-500.0,0.00019452,2]
[346317990,1734887440470,-633.85,0.00019452,2]
[346317991,1734887440480,-504.88,0.00019452,2]
[346317992,1734887440489,-150.0,0.00019534,2]
[346317993,1734887440499,-5218.58661517,0.00019535,2]
[346317994,1734887440509,-184.102,0.00019584,2]
[346317995,1734887440519,-287.224,0.00019584,2]
[346317996,1734887440529,-201.56058243,0.00019584,2]
[346317997,1734887440660,-465.57201229,0.00019178,2]
[346317998,1734887440672,-34.42798771,0.00019178,2]
[346317999,1734887440682,-789.00301229,0.00019584,2]
[346318000,1734887440694,-509.59999992,0.00019584,2]
[346318088,1734887443170,-847.16,0.00019178,2]
[346318089,1734887443180,-959.4,0.00019178,2]
[346318090,1734887443189,-572.76,0.00019178,2]
[346318091,1734887443200,-500.0,0.00019452,2]
[346318092,1734887443210,-847.16,0.00019452,2]
[346318093,1734887443220,-959.4,0.00019452,2]
[346318094,1734887443229,-572.76,0.00019452,2]
[346318095,1734887443244,-2307.31,0.00019584,2]
[346318096,1734887443261,-78.52640536,0.00019584,2]
[346318097,1734887443271,-1170.0,0.00019584,2]
[346318098,1734887443281,-3615.11524197,0.00019584,2]
[346318099,1734887443292,-3576.9,0.00019584,2]
[346318100,1734887443353,-1384.97539442,0.00019584,2]
[346318101,1734887443469,-1013.00936361,0.00019584,2]
[346318102,1734887443482,-5218.58661517,0.00019626,2]
[346318103,1734887443493,-365.42729023,0.00019717,2]
[346318107,1734887446185,-634.78,0.00019178,2]
[346318108,1734887446196,-532.3571791,0.00019452,2]
[346318109,1734887446383,-102.4228209,0.00019452,2]
[346318110,1734887446393,-1078.0,0.00019584,2]
[346318111,1734887446403,-4853.15932494,0.00019717,2]
[346318112,1734887446412,-500.24,0.00019725,2]
[346318113,1734887446422,-500.0,0.00019726,2]
[346318114,1734887446431,-500.0,0.00019726,2]
[346318115,1734887446442,-500.0,0.00019726,2]
[346318116,1734887446451,-500.0,0.00019726,2]
[346318117,1734887446461,-500.0,0.00019726,2]
[346318118,1734887446473,-500.0,0.00019726,2]
[346318119,1734887446483,-500.0,0.00019726,2]
[346318120,1734887446493,-359.04964491,0.00019726,2]
[346318121,1734887446503,-500.0,0.00019726,2]
[346318122,1734887446512,-434.285272,0.00019726,2]
[346318123,1734887446523,-2201.840124,0.00019726,2]
[346318125,1734887446532,-500.0,0.00019726,2]
[346318127,1734887446543,-500.0,0.00019726,2]
[346318129,1734887446552,-500.0,0.00019726,2]
[346318131,1734887446562,-500.0,0.00019726,2]
[346318133,1734887446573,-500.0,0.00019726,2]
[346318158,1734887446583,-500.0,0.00019726,2]
[346318161,1734887446806,-500.0,0.00019726,2]
[346318163,1734887446816,-578.86766787,0.00019726,2]
[346318165,1734887446825,-500.0,0.00019726,2]
[346318167,1734887446835,-500.0,0.00019726,2]
[346318169,1734887446844,-500.0,0.00019726,2]
[346318171,1734887446853,-500.0,0.00019726,2]
[346318173,1734887446862,-500.0,0.00019726,2]
[346318175,1734887446871,-643.29,0.00019726,2]
[346318177,1734887446880,-3743.68,0.00019726,2]
[346318179,1734887446890,-500.0,0.00019726,2]
[346318181,1734887446899,-635.0,0.00019726,2]
[346318183,1734887446908,-500.0,0.00019726,2]
[346318185,1734887446917,-743.01,0.00019726,2]
[346318187,1734887446926,-500.0,0.00019726,2]
[346318189,1734887446936,-677.36,0.00019726,2]
[346318191,1734887446945,-500.0,0.00019726,2]
[346318193,1734887446954,-500.0,0.00019726,2]
[346318195,1734887446963,-500.0,0.00019726,2]
[346318197,1734887446974,-500.0,0.00019726,2]
[346318199,1734887446983,-677.04,0.00019726,2]
[346318201,1734887446992,-500.0,0.00019726,2]
[346318203,1734887447001,-500.0,0.00019726,2]
[346318205,1734887447011,-500.0,0.00019726,2]
[346318207,1734887447020,-500.0,0.00019726,2]
[346318209,1734887447030,-592.21197319,0.00019726,2]
[346318211,1734887447040,-583.73,0.00019726,2]
[346318213,1734887447049,-500.0,0.00019726,2]
[346318215,1734887447058,-500.0,0.00019726,2]
[346318217,1734887447067,-518.23,0.00019726,2]
[346318219,1734887447077,-495.5,0.00019726,2]
[346318221,1734887447086,-500.0,0.00019726,2]
[346318223,1734887447095,-500.0,0.00019726,2]
[346318225,1734887447105,-641.64,0.00019726,2]
[346318227,1734887447114,-523.43,0.00019726,2]
[346318229,1734887447123,-500.0,0.00019726,2]
[346318231,1734887447133,-500.0,0.00019726,2]
[346318233,1734887447142,-500.0,0.00019726,2]
[346318235,1734887447151,-500.0,0.00019726,2]
[346318237,1734887447160,-500.0,0.00019726,2]
[346318239,1734887447170,-500.0,0.00019726,2]
[346318241,1734887447179,-212.9,0.00019726,2]
[346318243,1734887447188,-500.0,0.00019726,2]
[346318245,1734887447197,-186.43176211,0.00019726,2]
[346318247,1734887447206,-500.0,0.00019726,2]
[346318249,1734887447216,-500.0,0.00019726,2]
[346318251,1734887447226,-500.0,0.00019726,2]
[346318253,1734887447235,-500.0,0.00019726,2]
[346318255,1734887447246,-500.0,0.00019726,2]
[346318257,1734887447256,-500.0,0.00019726,2]
[346318259,1734887447265,-500.0,0.00019726,2]
[346318261,1734887447274,-500.0,0.00019726,2]
[346318263,1734887447284,-392.91,0.00019726,2]
[346318265,1734887447294,-500.0,0.00019726,2]
[346318267,1734887447303,-500.0,0.00019726,2]
[346318269,1734887447313,-2040.88,0.00019726,2]
[346318271,1734887447322,-354.62,0.00019726,2]
[346318273,1734887447331,-500.0,0.00019726,2]
[346318275,1734887447340,-621.83,0.00019726,2]
[346318277,1734887447350,-117.82575008,0.00019726,2]
[346318289,1734887447458,-430.17424992,0.00019726,2]
[346318291,1734887447467,-2105.49,0.00019726,2]
[346318293,1734887447477,-4216.59,0.00019726,2]
[346318295,1734887447488,-728.4,0.00019726,2]
[346318297,1734887447498,-520.65,0.00019726,2]
[346318299,1734887447508,-500.0,0.00019726,2]
[346318301,1734887447518,-500.0,0.00019726,2]
[346318303,1734887447529,-500.0,0.00019726,2]
[346318305,1734887447539,-635.4,0.00019726,2]
[346318308,1734887447548,-500.0,0.00019726,2]
[346318310,1734887447558,-533.48,0.00019726,2]
[346318312,1734887447567,-500.0,0.00019726,2]
[346318314,1734887447576,-6043.3596579,0.00019726,2]
[346318317,1734887447598,-581.87,0.00019726,2]
[346318916,1734887463388,343.21,0.00010137,2]
[346318917,1734888047283,6306.82,0.00012112,2]
[346318918,1734888302280,3218.39984761,0.0001,2]
[346318919,1734888325313,980.92786224,0.000108,2]
[346318920,1734888333945,151.03248166,0.0001,2]
[346318921,1734888335660,5000.0,8e-05,2]
[346318923,1734888342411,168.28,0.00010137,2]
[346318924,1734888353315,5873.16369357,6.94e-05,2]
[346318930,1734888514856,500.0,0.0002,120]
[346318960,1734888632310,-337.25290284,0.000129,2]
[346318961,1734888632321,-24.68272502,0.00013,2]
[346318962,1734888632371,-425.31727498,0.00013,2]
[346318963,1734888632381,-44056.89272502,0.00013,2]
[346318964,1734888632392,-50150.28502197,0.00013,2]
[346318965,1734888632596,-179400.95677218,0.00013,2]
[346318966,1734888632606,-39102.99788187,0.00013,2]
[346318967,1734888632654,-29545.15897283,0.00013,2]
[346318968,1734888632665,-4636.58367291,0.00013,2]
[346318971,1734888638332,-3182.40275542,0.00013,2]
[346318972,1734888638345,-2727.19753113,0.00013,2]
[346318973,1734888638446,-2636.95,0.00013,2]
[346318974,1734888638460,-403.400028,0.00013,2]
[346318975,1734888638507,-371003.07517867,0.00013,2]
[346318976,1734888638517,-151.61663114,0.00013499,2]
[346318977,1734888638527,-1043.71732307,0.00013599,2]
[346318978,1734888638536,-174.8,0.00013699,2]
[346318979,1734888638546,-1043.71732303,0.00014299,2]
[346318980,1734888638555,-1043.71732303,0.00014999,2]
[346318981,1734888638565,-500.0,0.00015,2]
[346318982,1734888638575,-1043.71732303,0.00015699,2]
[346318983,1734888638584,-970.43,0.0001608,2]
[346318984,1734888638594,-1043.71732303,0.00016399,2]
[346318985,1734888638603,-343.21,0.00016813,2]
[346318986,1734888638613,-550.0,0.00017,2]
[346318987,1734888638623,-1043.71732303,0.000171,2]
[346318989,1734888638632,-1555.03,0.00017357,2]
[346318991,1734888638642,-708.46,0.00017376,2]
[346318993,1734888638651,-1000.0,0.0001773,2]
[346318995,1734888638661,-438.32,0.00017768,2]
[346318997,1734888638670,-1043.71732303,0.000178,2]
[346318999,1734888638680,-250.0,0.00017818,2]
[346319001,1734888638689,-538.47,0.00018042,2]
[346319003,1734888638699,-250.0,0.00018076,2]
[346319005,1734888638711,-505.05,0.00018114,2]
[346319007,1734888638721,-150.0,0.00018222,2]
[346319009,1734888638730,-150.0,0.00018222,2]
[346319011,1734888638740,-150.0,0.0001824,2]
[346319013,1734888638749,-161.84,0.00018255,30]
[346319015,1734888638759,-250.0,0.00018286,2]
[346319017,1734888638768,-970.43,0.00018343,2]
[346319020,1734888638778,-1043.71732303,0.000185,2]
[346319022,1734888638788,-502.42,0.00018588,2]
[346319024,1734888638798,-555.11,0.00018639,2]
[346319026,1734888638808,-162.72,0.00018688,2]
[346319027,1734888638817,-1321.95,0.00018705,2]
[346319028,1734888638827,-185.71,0.00018897,2]
[346319029,1734888638836,-11627.61036895,0.0001898,2]
[346319030,1734888638845,-600.0,0.00019,2]
[346319031,1734888638855,-367.608,0.00019,2]
[346319032,1734888638865,-10000.0,0.00019,2]
[346319033,1734888638875,-300.0,0.00019014,2]
[346319034,1734888638884,-3417.9921,0.00019077,2]
[346319035,1734888638894,-1118.15,0.00019133,2]
[346319036,1734888638910,-14435.65229786,0.00019177,5]
[346319037,1734888638919,-503.07,0.00019178,2]
[346319038,1734888638929,-405.211857,0.00019178,2]
[346319039,1734888638939,-155.856396,0.00019178,2]
[346319040,1734888638948,-1939.660875,0.00019178,2]
[346319041,1734888638958,-380.32134295,0.00019178,2]
[346319042,1734888638968,-5000.0,0.00019178,2]
[346319043,1734888638978,-500.0,0.00019178,2]
[346319044,1734888638988,-500.0,0.00019178,2]
[346319045,1734888638998,-500.0,0.00019178,2]
[346319046,1734888639007,-500.0,0.00019178,2]
[346319047,1734888639017,-500.0,0.00019178,2]
[346319049,1734888639026,-500.0,0.00019178,2]
[346319051,1734888639035,-500.0,0.00019178,2]
[346319053,1734888639045,-500.0,0.00019178,2]
[346319056,1734888639055,-500.0,0.00019178,2]
[346319058,1734888639064,-500.0,0.00019178,2]
[346319060,1734888639073,-500.0,0.00019178,2]
[346319062,1734888639083,-500.0,0.00019178,2]
[346319064,1734888639092,-500.0,0.00019178,2]
[346319066,1734888639101,-500.0,0.00019178,2]
[346319068,1734888639111,-500.0,0.00019178,2]
[346319070,1734888639121,-500.0,0.00019178,2]
[346319072,1734888639133,-500.0,0.00019178,2]
[346319074,1734888639143,-500.0,0.00019178,2]
[346319076,1734888639153,-500.0,0.00019178,2]
[346319078,1734888639163,-500.0,0.00019178,2]
[346319080,1734888639173,-500.0,0.00019178,2]
[346319082,1734888639183,-500.0,0.00019178,2]
[346319084,1734888639192,-500.0,0.00019178,2]
[346319086,1734888639204,-500.0,0.00019178,2]
[346319088,1734888639214,-500.0,0.00019178,2]
[346319090,1734888639223,-500.0,0.00019178,2]
[346319092,1734888639234,-500.0,0.00019178,2]
[346319094,1734888639244,-510.77,0.00019178,2]
[346319096,1734888639253,-500.0,0.00019178,2]
[346319098,1734888639263,-500.0,0.00019178,2]
[346319100,1734888639272,-364.96708586,0.00019178,2]
[346319102,1734888639282,-429.10679676,0.00019178,2]
[346319105,1734888639292,-500.0,0.00019178,2]
[346319107,1734888639301,-500.0,0.00019178,2]
[346319109,1734888639312,-506.60123214,0.00019178,2]
[346319111,1734888639321,-500.0,0.00019178,2]
[346319113,1734888639331,-500.0,0.00019178,2]
[346319115,1734888639341,-500.0,0.00019178,2]
[346319117,1734888639350,-500.0,0.00019178,2]
[346319119,1734888639359,-500.0,0.00019178,2]
[346319121,1734888639369,-500.0,0.00019178,2]
[346319123,1734888639378,-500.0,0.00019178,2]
[346319125,1734888639387,-500.0,0.00019178,2]
[346319126,1734888639397,-500.0,0.00019178,2]
[346319128,1734888639407,-500.0,0.00019178,2]
[346319130,1734888639416,-597.95,0.00019178,2]
[346319132,1734888639426,-3275.72,0.00019178,2]
[346319134,1734888639435,-500.0,0.00019178,2]
[346319136,1734888639445,-500.0,0.00019178,2]
[346319138,1734888639457,-500.0,0.00019178,2]
[346319140,1734888639467,-500.0,0.00019178,2]
[346319141,1734888639477,-410.75962873,0.00019178,2]
[346319142,1734888639487,-500.0,0.00019178,2]
[346319143,1734888639497,-500.0,0.00019178,2]
[346319144,1734888639507,-500.0,0.00019178,2]
[346319145,1734888639517,-500.0,0.00019178,2]
[346319146,1734888639526,-500.0,0.00019178,2]
[346319147,1734888639536,-500.0,0.00019178,2]
[346319148,1734888639546,-500.0,0.00019178,2]
[346319149,1734888639555,-500.0,0.00019178,2]
[346319150,1734888639565,-500.0,0.00019178,2]
[346319151,1734888639575,-500.0,0.00019178,2]
[346319152,1734888639584,-500.0,0.00019178,2]
[346319153,1734888639594,-500.0,0.00019178,2]
[346319154,1734888639603,-650.13,0.00019178,2]
[346319155,1734888639613,-500.0,0.00019178,2]
[346319156,1734888639623,-500.0,0.00019178,2]
[346319157,1734888639632,-555.62,0.00019178,2]
[346319158,1734888639643,-500.0,0.00019178,2]
[346319159,1734888639652,-500.0,0.00019178,2]
[346319160,1734888639662,-500.0,0.00019178,2]
[346319161,1734888639672,-500.0,0.00019178,2]
[346319162,1734888639682,-500.0,0.00019178,2]
[346319163,1734888639691,-500.0,0.00019178,2]
[346319164,1734888639701,-500.0,0.00019178,2]
[346319165,1734888639711,-592.69,0.00019178,2]
[346319166,1734888639720,-636.68,0.00019178,2]
[346319167,1734888639730,-500.0,0.00019178,2]
[346319168,1734888639946,-500.0,0.00019178,2]
[346319169,1734888639963,-500.0,0.00019178,2]
[346319170,1734888639973,-500.0,0.00019178,2]
[346319171,1734888639982,-500.0,0.00019178,2]
[346319172,1734888639992,-500.0,0.00019178,2]
[346319173,1734888640002,-500.0,0.00019178,2]
[346319174,1734888640012,-500.0,0.00019178,2]
[346319175,1734888640021,-500.0,0.00019178,2]
[346319176,1734888640031,-500.0,0.00019178,2]
[346319177,1734888640040,-587.04,0.00019178,2]
[346319178,1734888640050,-500.0,0.00019178,2]
[346319179,1734888640059,-500.0,0.00019178,2]
[346319180,1734888640069,-500.0,0.00019178,2]
[346319181,1734888640078,-500.0,0.00019178,2]
[346319182,1734888640088,-500.0,0.00019178,2]
[346319183,1734888640097,-500.0,0.00019178,2]
[346319184,1734888640106,-500.0,0.00019178,2]
[346319185,1734888640116,-500.0,0.00019178,2]
[346319186,1734888640125,-638.81962943,0.00019178,2]
[346319187,1734888640135,-500.0,0.00019178,2]
[346319188,1734888640144,-500.0,0.00019178,2]
[346319189,1734888640153,-500.0,0.00019178,2]
[346319190,1734888640163,-500.0,0.00019178,2]
[346319191,1734888640172,-500.0,0.00019178,2]
[346319192,1734888640181,-500.0,0.00019178,2]
[346319193,1734888640191,-500.0,0.00019178,2]
[346319194,1734888640201,-500.0,0.00019178,2]
[346319195,1734888640210,-500.0,0.00019178,2]
[346319196,1734888640219,-500.0,0.00019178,2]
[346319197,1734888640228,-413.21229027,0.00019178,2]
[346319198,1734888640237,-500.0,0.00019178,2]
[346319199,1734888640247,-500.0,0.00019178,2]
[346319200,1734888640256,-500.0,0.00019178,2]
[346319201,1734888640265,-500.0,0.00019178,2]
[346319202,1734888640274,-500.0,0.00019178,2]
[346319203,1734888640283,-500.0,0.00019178,2]
[346319204,1734888640293,-517.96,0.00019178,2]
[346319205,1734888640302,-500.0,0.00019178,2]
[346319206,1734888640311,-500.0,0.00019178,2]
[346319207,1734888640320,-500.0,0.00019178,2]
[346319208,1734888640330,-500.0,0.00019178,2]
[346319209,1734888640339,-500.0,0.00019178,2]
[346319210,1734888640348,-500.0,0.00019178,2]
[346319211,1734888640358,-594.12,0.00019178,2]
[346319212,1734888640367,-561.44,0.00019178,2]
[346319213,1734888640376,-500.0,0.00019178,2]
[346319214,1734888640386,-500.0,0.00019178,2]
[346319215,1734888640394,-500.0,0.00019178,2]
[346319216,1734888640404,-500.0,0.00019178,2]
[346319217,1734888640413,-500.0,0.00019178,2]
[346319218,1734888640422,-500.0,0.00019178,2]
[346319219,1734888640431,-500.0,0.00019178,2]
[346319220,1734888640440,-500.0,0.00019178,2]
[346319221,1734888640449,-500.0,0.00019178,2]
[346319222,1734888640459,-506.34060198,0.00019178,2]
[346319223,1734888640468,-500.0,0.00019178,2]
[346319224,1734888640477,-509.91743499,0.00019178,2]
[346319225,1734888640486,-500.0,0.00019178,2]
[346319226,1734888640495,-500.0,0.00019178,2]
[346319227,1734888640505,-500.0,0.00019178,2]
[346319228,1734888640514,-500.0,0.00019178,2]
[346319229,1734888640523,-500.0,0.00019178,2]